bitfinex-derivatives/quotes_ETHF0:USTF0_20241018
["timestamp","ask_amount","ask_price","bid_price","bid_amount"]
[1729214529277,4.5878,2612.9,2612.8,0.38281]
[1729214529474,1.38,2612.9,2612.8,0.38281]
[1729214529672,4.5878,2612.9,2612.8,0.38281]
[1729214530278,4.145,2613.7,2612.8,14.415]
[1729214530580,2.1853,2613.6,2613.5,0.38272]
[1729214530778,5.3931,2613.6,2613.5,0.38272]
[1729214530976,5.3931,2613.6,2613.5,1.76272]
[1729214531288,5.3931,2613.6,2613.5,0.38272]
[1729214531983,3.2078,2613.6,2613.5,0.38272]
[1729214532880,3.2078,2613.6,2613.5,0.77342]
[1729214535091,3.59051,2613.6,2613.4,0.38272]
[1729214535384,3.2078,2613.6,2613.2,0.8309]
[1729214535580,0.412,2613.5,2613.4,0.38273]
[1729214542907,3.2078,2613.7,2613.2,0.4221]
[1729214543106,3.2078,2613.7,2613.6,0.38271]
[1729214544398,0.4228,2613.8,2613.4,0.3597]
[1729214544606,3.6156,2614.1,2613.4,4.52432]
[1729214544906,3.6156,2614.1,2613.9,0.38266]
[1729214544907,0.3957,2614.0,2613.9,0.38266]
[1729214548318,3.2078,2614.1,2614.0,0.38265]
[1729214548509,3.2078,2614.1,2614.0,3.37265]
[1729214548706,0.4286,2614.4,2614.3,0.3826]
[1729214550310,0.4286,2614.4,2613.9,1.38604]
[1729214550511,0.38262,2614.2,2614.0,0.38264]
[1729214550711,1.18534,2614.1,2613.9,0.38266]
[1729214551218,3.6364,2614.4,2614.3,0.3826]
[1729214551219,3.2078,2614.4,2614.3,0.3826]
[1729214551414,4.4362,2614.4,2614.3,0.3826]
[1729214551921,4.81879,2614.4,2614.2,0.38261]
[1729214553016,4.4362,2614.4,2614.2,0.38262]
[1729214553714,4.81879,2614.4,2614.2,0.38262]
[1729214554312,3.2078,2615.0,2614.3,6.8148]
[1729214554515,0.38252,2614.9,2614.7,0.38254]
[1729214554716,4.80581,2615.0,2614.8,0.38253]
[1729214555317,4.4233,2615.0,2614.5,2.99]
[1729214555616,4.80581,2615.0,2614.8,0.38253]
[1729214555823,4.8058,2615.0,2614.8,0.38253]
[1729214556321,4.8058,2615.0,2614.7,0.38254]
[1729214557025,4.4233,2615.0,2614.7,0.38254]
[1729214557220,4.80581,2615.0,2614.7,0.38254]
[1729214557615,3.2078,2614.9,2614.7,0.38254]
[1729214557814,3.2078,2614.9,2614.7,0.29077096]
[1729214558226,3.59032,2614.9,2614.7,0.29077096]
[1729214558422,0.38253,2614.8,2614.6,0.77805]
[1729214558722,3.59033,2614.9,2614.6,0.38255]
[1729214558928,3.59033,2614.9,2614.3,4.1676]
[1729214559121,3.59033,2614.9,2614.7,0.38254]
[1729214559629,3.2078,2614.9,2614.7,0.38254]
[1729214560128,3.59032,2614.9,2614.7,0.38254]
[1729214565021,0.38253,2614.8,2614.6,0.38255]
[1729214565232,0.38254,2614.8,2614.6,0.38256]
[1729214565625,3.2078,2614.9,2614.5,0.38256]
[1729214565626,0.38255,2614.7,2614.5,0.38256]
[1729214565827,0.832,2614.6,2614.5,0.38256]
[1729214566031,1.2253,2614.6,2614.5,0.38256]
[1729214566335,0.3933,2614.6,2614.5,0.38256]
[1729214566527,0.3933,2614.6,2614.5,3.37256]
[1729214567437,0.4035,2614.8,2614.7,0.38254]
[1729214567639,0.8043,2614.8,2614.7,0.38254]
[1729214568027,1.18683,2614.8,2614.7,0.38254]
[1729214569436,0.8043,2614.8,2614.7,0.38254]
[1729214570536,0.8043,2614.8,2614.5,2.99]
[1729214570836,0.8043,2614.8,2614.7,0.38254]
[1729214571931,0.8043,2614.8,2614.7,1.76254]
[1729214572545,0.38255,2614.7,2614.5,0.38257]
[1729214572733,0.4264,2614.6,2614.5,0.38257]
[1729214572937,0.4264,2614.6,2614.5,1.76257]
[1729214573135,0.4264,2614.6,2614.5,5.58737]
[1729214573331,0.4264,2614.6,2614.5,1.76257]
[1729214576736,0.8043,2614.8,2614.5,1.38]
[1729214576936,0.4008,2614.8,2614.7,1.76254]
[1729214578437,0.78333,2614.8,2614.7,1.76254]
[1729214578633,0.4008,2614.8,2614.7,1.76254]
[1729214581236,0.78333,2614.8,2614.7,1.76254]
[1729214581442,0.4008,2614.8,2614.7,1.76254]
[1729214582243,0.4008,2614.8,2614.7,1.38]
[1729214582549,0.78333,2614.8,2614.7,1.38]
[1729214583552,0.78333,2614.8,2614.7,1.76254]
[1729214586352,0.78333,2614.8,2614.6,0.38256]
[1729214586353,0.38255,2614.7,2614.6,0.38256]
[1729214586549,3.59035,2614.7,2614.6,1.76256]
[1729214587451,3.2078,2614.7,2614.6,1.76256]
[1729214587644,3.59034,2614.7,2614.6,1.76256]
[1729214589949,3.59034,2614.7,2614.6,1.38]
[1729214590858,3.59034,2614.7,2614.6,1.76256]
[1729214591250,3.59034,2614.7,2614.6,0.38256]
[1729214591457,3.59034,2614.7,2614.6,1.76256]
[1729214592653,0.38254,2614.7,2614.6,1.76256]
[1729214592841,3.59034,2614.7,2614.6,1.38]
[1729214593047,3.59034,2614.7,2614.6,1.76256]
[1729214593754,0.38254,2614.7,2614.6,1.76256]
[1729214597254,0.38254,2614.7,2614.6,1.38]
[1729214597773,5.2048,2614.7,2614.2,3.2078]
[1729214598058,0.3826,2614.3,2614.2,4.5878]
[1729214598464,0.7798,2614.3,2614.2,4.97042]
[1729214600665,0.7798,2614.3,2614.2,1.76262]
[1729214601254,2.1598,2614.3,2614.2,0.38262]
[1729214601464,0.7798,2614.3,2614.2,1.76262]
[1729214601662,2.1598,2614.3,2614.2,1.38]
[1729214601863,4.985,2614.3,2613.4,11.61932931]
[1729214602065,4.985,2614.3,2613.5,1.38]
[1729214602066,1.38,2613.7,2613.5,1.38]
[1729214602372,3.2078,2614.0,2613.5,1.38]
[1729214602373,2.2031,2613.6,2613.5,1.38]
[1729214602552,0.8231,2613.6,2613.5,1.76272]
[1729214603474,1.2137,2613.6,2613.5,1.76272]
[1729214603758,2.5937,2613.6,2613.5,0.38272]
[1729214603955,1.2137,2613.6,2613.5,1.76272]
[1729214604255,1.59641,2613.6,2613.5,1.38]
[1729214604461,1.2137,2613.6,2613.5,1.76272]
[1729214606157,2.97641,2613.6,2613.5,1.38]
[1729214606462,2.97641,2613.6,2613.2,3.2078]
[1729214606463,0.38273,2613.5,2613.4,1.38]
[1729214606660,1.76273,2613.5,2613.4,1.38]
[1729214607158,0.38273,2613.5,2613.4,1.76273]
[1729214607465,0.38273,2613.4,2613.3,1.38]
[1729214607660,1.76273,2613.4,2613.3,1.38]
[1729214607859,1.76273,2613.4,2613.2,1.38]
[1729214607860,1.38,2613.4,2613.2,1.38]
[1729214608055,1.38,2613.4,2612.9,3.5675]
[1729214608056,0.38278,2613.1,2612.9,0.3828]
[1729214608256,0.38278,2613.1,2612.9,1.7628]
[1729214608257,0.8472,2613.0,2612.9,1.7628]
[1729214608561,2.2272,2613.0,2612.9,0.3828]
[1729214608764,2.2272,2613.0,2612.8,1.7967]
[1729214608955,1.38,2612.9,2612.8,1.7967]
[1729214609155,1.38,2612.9,2612.8,1.76282]
[1729214609355,1.38,2612.9,2612.5,3.2078]
[1729214609356,4.5878,2612.9,2612.6,1.38]
[1729214609556,1.38,2612.7,2612.6,1.76284]
[1729214610465,1.38,2612.8,2612.7,0.38283]
[1729214611161,1.38,2612.8,2612.5,0.4167]
[1729214611470,0.38288,2612.4,2612.2,2.1875]
[1729214611659,0.4186,2612.3,2612.2,2.1875]
[1729214611866,0.4186,2612.3,2612.2,0.8075]
[1729214612461,0.3952,2612.5,2612.2,0.4246]
[1729214612659,0.4186,2612.7,2612.3,2.99]
[1729214612860,0.4186,2612.7,2612.6,0.38285]
[1729214613065,0.4186,2612.7,2612.2,0.7844]
[1729214613266,0.38286,2612.6,2612.3,0.38289]
[1729214613857,0.38286,2612.6,2612.4,0.38288]
[1729214614255,0.38286,2612.6,2612.2,0.7844]
[1729214614461,0.38286,2612.6,2612.3,0.38289]
[1729214614859,0.38286,2612.6,2612.2,0.7844]
[1729214615064,0.38286,2612.6,2612.4,0.38288]
[1729214615369,0.38285,2612.6,2612.4,0.38288]
[1729214615861,0.80145,2612.7,2612.4,0.38288]
[1729214616762,0.4186,2612.7,2612.2,3.7744]
[1729214617064,0.4186,2612.7,2612.5,0.38286]
[1729214617269,0.80144,2612.7,2612.5,0.38286]
[1729214617458,0.80144,2612.7,2612.2,3.7744]
[1729214617654,0.80144,2612.7,2612.4,0.38287]
[1729214618864,0.80144,2612.7,2612.5,0.38286]
[1729214620760,0.80144,2612.7,2612.6,0.4177]
[1729214620957,0.4186,2612.7,2612.6,0.80055]
[1729214621366,0.4186,2612.7,2612.6,0.4177]
[1729214621677,0.4186,2612.7,2612.6,0.80055]
[1729214621878,0.4186,2612.7,2612.6,0.4177]
[1729214622173,0.4186,2612.7,2612.6,0.80055]
[1729214623065,0.4186,2612.7,2612.6,0.4177]
[1729214623679,0.4186,2612.7,2612.6,0.80055]
[1729214625178,0.4186,2612.7,2612.6,0.4177]
[1729214625373,0.80144,2612.7,2612.6,0.4177]
[1729214625581,0.4186,2612.7,2612.6,0.4177]
[1729214625875,0.4186,2612.7,2612.6,0.80055]
[1729214626072,0.4186,2612.7,2612.6,0.4177]
[1729214626875,0.4186,2612.7,2612.6,0.80055]
[1729214627582,3.2078,2612.8,2612.7,0.38284]
[1729214628279,1.2638,2613.1,2612.7,0.7607]
[1729214628472,1.64659,2613.1,2612.9,0.38281]
[1729214629782,1.64659,2613.1,2612.8,0.38281]
[1729214629783,0.38279,2613.0,2612.8,0.38281]
[1729214630078,1.2638,2613.1,2612.9,0.38281]
[1729214630287,0.38279,2613.0,2612.8,0.38281]
[1729214630472,1.64659,2613.1,2612.9,0.38281]
[1729214630881,1.2638,2613.1,2612.7,0.7607]
[1729214631075,1.2638,2613.1,2613.0,0.38279]
[1729214631477,0.4229,2613.1,2613.0,0.38279]
[1729214631881,0.4229,2613.1,2613.0,1.76279]
[1729214633684,0.4229,2613.1,2613.0,0.38279]
[1729214634071,0.4229,2613.1,2613.0,1.76279]
[1729214636494,3.2078,2613.3,2613.2,0.38276]
[1729214636781,0.19210889,2614.3,2613.2,0.38276]
[1729214636782,1.21257,2613.9,2613.7,0.38268]
[1729214636983,2.2099,2613.9,2613.7,1.38]
[1729214637290,2.2099,2613.9,2613.7,1.76268]
[1729214637291,2.59256,2613.9,2613.7,1.76268]
[1729214637588,2.2099,2613.9,2613.8,1.38]
[1729214638185,2.59256,2613.9,2613.7,1.76268]
[1729214639187,2.2099,2613.9,2613.7,1.76268]
[1729214639885,0.8299,2613.9,2613.7,0.38268]
[1729214640288,1.21256,2613.9,2613.7,0.38268]
[1729214640782,1.21257,2613.9,2613.7,0.38269]
[1729214641381,0.8299,2613.9,2613.3,2.99]
[1729214641577,0.8299,2613.9,2613.8,0.38268]
[1729214642987,0.8299,2613.9,2613.5,1.1459]
[1729214643287,0.8299,2613.9,2613.7,0.38269]
[1729214643288,1.21257,2613.9,2613.7,0.38269]
[1729214644789,0.8299,2613.9,2613.5,1.1459]
[1729214644990,0.38271,2613.6,2613.4,3.59053]
[1729214645182,0.8398,2613.5,2613.2,0.38275]
[1729214645384,0.38276,2613.2,2613.0,0.38279]
[1729214645681,0.38276,2613.2,2612.9,4.093]
[1729214645682,0.80119,2613.1,2612.9,0.3828]
[1729214645891,0.80119,2613.1,2613.0,0.38279]
[1729214646291,0.4184,2613.1,2613.0,0.38279]
[1729214646492,0.80118,2613.1,2612.8,0.427]
[1729214646788,0.80118,2613.1,2612.9,0.38279]
[1729214647087,0.80118,2613.1,2612.8,0.427]
[1729214647485,0.80118,2613.1,2612.9,0.38279]
[1729214648292,0.4184,2613.1,2612.9,0.38279]
[1729214648489,0.80118,2613.1,2612.9,0.38279]
[1729214648791,0.4184,2613.1,2612.8,0.427]
[1729214648990,2.99,2612.9,2612.3,0.4057]
[1729214649198,0.38284,2612.7,2612.5,0.38286]
[1729214649492,0.80573,2612.8,2612.3,0.4215]
[1729214649689,0.80573,2612.8,2612.5,0.38287]
[1729214649690,0.4075,2612.6,2612.5,0.38287]
[1729214654893,0.3911,2613.0,2612.7,0.38284]
[1729214655090,0.3911,2613.0,2612.4,2.99]
[1729214655291,0.7739,2613.0,2612.7,0.38282]
[1729214655494,0.7739,2613.0,2612.4,2.99]
[1729214655699,0.7739,2613.0,2612.8,0.38282]
[1729214657901,0.7739,2613.0,2612.4,2.99]
[1729214657902,0.3911,2613.0,2612.9,0.38281]
[1729214658399,0.3938,2613.1,2613.0,0.38279]
[1729214666803,1.2054,2613.1,2613.0,0.38279]
[1729214669097,0.3938,2613.1,2613.0,0.38279]
[1729214673804,0.3938,2613.1,2613.0,1.76279]
[1729214675402,1.7738,2613.1,2613.0,0.38279]
[1729214675706,2.6059,2613.1,2613.0,0.38279]
[1729214676004,6.4331,2613.1,2612.5,1.38]
[1729214676212,1.38,2612.6,2612.5,0.38285]
[1729214676608,2.6364,2612.6,2612.5,0.38285]
[1729214677907,1.2564,2612.6,2612.5,0.38285]
[1729214679809,1.63925,2612.6,2612.5,0.38285]
[1729214680811,0.38287,2612.5,2612.4,3.2078]
[1729214681009,0.38287,2612.5,2612.2,0.3829]
[1729214681010,6.1978,2612.5,2612.2,0.3829]
[1729214681212,6.1978,2612.5,2612.2,0.38291]
[1729214681513,6.1978,2612.5,2611.9,3.2078]
[1729214681707,0.38289,2612.4,2611.9,3.6308]
[1729214682110,0.38289,2612.4,2612.3,0.3829]
[1729214682317,0.38288,2612.4,2612.3,0.3829]
[1729214682509,6.58067,2612.5,2611.9,3.6308]
[1729214682702,3.59067,2612.5,2612.4,0.38288]
[1729214683010,3.2078,2612.5,2612.2,0.3829]
[1729214683312,0.3829,2612.3,2612.2,0.3829]
[1729214683508,0.3829,2612.3,2611.9,3.6308]
[1729214683509,3.2078,2612.5,2611.9,3.6308]
[1729214683714,3.59068,2612.5,2612.3,0.38289]
[1729214684407,3.59068,2612.5,2611.9,3.6308]
[1729214684611,3.59068,2612.5,2612.4,0.38288]
[1729214685417,0.8321,2612.6,2612.5,0.38287]
[1729214686314,1.21496,2612.6,2612.1,0.3934]
[1729214686515,1.21496,2612.6,2612.2,0.38291]
[1729214686709,0.8321,2612.6,2612.5,0.38287]
[1729214688010,3.2078,2612.8,2612.2,6.1978]
[1729214688215,3.6198,2612.8,2612.7,0.38284]
[1729214689716,0.4078,2612.9,2612.5,3.2078]
[1729214689906,0.4078,2612.9,2612.8,0.38282]
[1729214690310,0.4225,2613.1,2613.0,0.38279]
[1729214691811,0.4265,2613.3,2613.2,0.38276]
[1729214702531,0.4265,2613.3,2612.9,3.5959]
[1729214702727,0.80926,2613.3,2613.1,0.38277]
[1729214704028,1.38,2613.2,2613.1,0.38277]
[1729214706323,0.38278,2613.1,2613.0,0.38279]
[1729214706522,1.8082,2613.1,2612.9,3.5906]
[1729214706727,2.17549,2613.0,2612.9,3.2078]
[1729214706917,2.17549,2613.0,2612.9,0.38281]
[1729214707726,0.38281,2612.9,2612.8,0.38281]
[1729214708031,0.38281,2612.9,2612.7,0.38282]
[1729214708032,1.76281,2612.9,2612.7,0.38282]
[1729214708230,1.7744,2612.8,2612.7,0.38282]
[1729214708433,1.7744,2612.8,2612.7,1.76282]
[1729214708623,2.15722,2612.8,2612.6,1.38]
[1729214708825,1.38,2612.7,2612.6,1.76285]
[1729214709425,1.7744,2612.8,2612.7,0.38284]
[1729214711735,1.7744,2612.8,2612.7,1.76284]
[1729214713734,0.7955,2613.0,2612.9,0.38281]
[1729214713735,0.4127,2613.0,2612.9,0.38281]
[1729214714732,1.7927,2613.0,2612.9,0.38281]
[1729214716240,0.4127,2613.0,2612.9,0.38281]
[1729214716735,0.4127,2613.0,2612.9,0.80481]
[1729214716932,1.8082,2613.1,2612.9,1.802]
[1729214717139,1.38,2613.1,2613.0,0.38279]
[1729214717337,1.7867,2613.2,2613.1,0.38278]
[1729214720236,1.7867,2613.2,2613.1,1.76278]
[1729214720734,1.7867,2613.2,2613.1,0.38278]
[1729214725339,1.7867,2613.2,2613.1,1.76278]
[1729214725534,1.38,2613.2,2613.1,1.76278]
[1729214731449,1.38,2613.3,2613.2,0.38276]
[1729214731752,0.8383,2613.4,2613.2,1.38]
[1729214731955,1.38,2613.3,2613.2,1.76276]
[1729214735352,1.38,2613.3,2613.2,0.38276]
[1729214740352,0.38276,2613.2,2613.1,0.38277]
[1729214740562,2.18006,2613.2,2613.1,0.38277]
[1729214742761,1.7973,2613.2,2612.6,4.55995993]
[1729214742952,1.38,2612.7,2612.6,4.01335]
[1729214743149,1.76283,2612.8,2612.6,2.18555]
[1729214743355,0.8053,2612.7,2612.6,1.76285]
[1729214743558,1.2266,2612.7,2612.6,1.76285]
[1729214745364,1.2266,2612.7,2612.5,0.38285]
[1729214745365,2.98944,2612.7,2612.5,0.38285]
[1729214745554,2.6066,2612.7,2612.6,0.38285]
[1729214746258,2.98944,2612.7,2612.6,1.76285]
[1729214746451,2.6066,2612.7,2612.6,1.76285]
[1729214749169,1.2266,2612.7,2612.6,1.76285]
[1729214749465,0.8053,2612.7,2612.6,1.76285]
[1729214750857,2.1853,2612.7,2612.6,1.76285]
[1729214751064,2.1853,2612.7,2612.6,0.38285]
[1729214753775,2.1853,2612.7,2612.6,1.76285]
[1729214754568,0.8053,2612.7,2612.6,1.76285]
[1729214756170,2.1853,2612.7,2612.6,1.76285]
[1729214762382,0.8053,2612.7,2612.6,1.76285]
[1729214764074,2.1853,2612.7,2612.6,0.38285]
[1729214775779,0.408,2612.7,2612.3,1.8027]
[1729214775971,0.408,2612.7,2612.4,1.38]
[1729214775972,1.784,2612.6,2612.4,1.38]
[1729214776280,1.784,2612.6,2612.5,0.38287]
[1729214776475,0.408,2612.7,2612.5,1.38]
[1729214776681,1.38,2612.9,2612.8,0.38282]
[1729214777082,1.76281,2612.9,2612.8,0.38282]
[1729214777578,1.38,2612.9,2612.8,0.38282]
[1729214778779,1.76281,2612.9,2612.8,0.38282]
[1729214780582,12.5872,2612.9,2612.3,0.99245993]
[1729214780779,12.5872,2612.9,2611.6,2.97737979]
[1729214780780,1.38,2612.4,2611.8,0.99245993]
[1729214780977,1.38,2611.9,2611.7,0.7757]
[1729214781171,3.6267,2612.3,2611.8,0.38297]
[1729214781172,0.38295,2612.0,2611.8,0.38297]
[1729214781373,1.38,2611.9,2611.8,0.38297]
[1729214782374,3.5969,2612.3,2611.8,1.38]
[1729214782578,3.5969,2612.3,2612.1,0.38292]
[1729214782579,1.38,2612.2,2612.1,0.38292]
[1729214783980,1.8054,2612.2,2612.1,0.38292]
[1729214788485,2.18831,2612.2,2612.0,0.38293]
[1729214788683,1.38,2612.1,2612.0,0.38293]
[1729214789389,1.76292,2612.1,2611.9,0.38295]
[1729214789589,1.38,2612.0,2611.9,0.38295]
[1729214791389,0.4254,2612.2,2612.1,0.38292]
[1729214791587,1.8054,2612.2,2612.1,0.38292]
[1729214794696,2.18831,2612.2,2612.0,0.38293]
[1729214794896,1.76293,2612.1,2611.9,0.38294]
[1729214795097,1.38,2612.0,2611.9,0.38294]
[1729214798889,1.7702,2612.0,2611.9,0.38294]
[1729214816510,0.4254,2612.2,2612.1,0.38292]
[1729214816715,1.8054,2612.2,2612.1,0.38292]
[1729214820319,0.3891,2612.3,2612.2,0.38291]
[1729214820518,1.7691,2612.3,2612.2,0.38291]
[1729214824812,2.1862,2612.3,2612.2,0.38291]
[1729214831031,2.5691,2612.3,2612.2,0.38291]
[1729214832027,0.3891,2612.3,2612.2,0.38291]
[1729214832213,3.2078,2613.1,2612.3,0.95725]
[1729214832418,2.2341,2612.9,2612.8,0.38282]
[1729214832614,0.8541,2612.9,2612.8,0.38282]
[1729214832920,2.2341,2612.9,2612.8,0.38282]
[1729214835927,41.18276,2613.3,2612.8,1.7858]
[1729214836130,42.00706,2613.3,2613.1,0.38277]
[1729214836320,1.38,2613.2,2613.1,0.38277]
[1729214836519,5.2064,2613.2,2613.1,0.38277]
[1729214836727,11.2064,2613.2,2613.1,0.38277]
[1729214837618,11.2064,2613.2,2612.8,0.4058]
[1729214837826,1.38,2612.9,2612.8,0.78862]
[1729214838717,1.38,2613.0,2612.9,0.38281]
[1729214839825,0.8243,2613.3,2613.2,0.38276]
[1729214840125,2.2043,2613.3,2613.2,0.38276]
[1729214840627,40.8,2613.5,2613.2,1.76276]
[1729214840816,3.59045,2614.0,2613.8,0.38267]
[1729214841022,0.4289,2613.9,2613.8,1.76267]
[1729214841219,0.38258,2614.5,2614.2,0.38261]
[1729214841531,1.38,2614.3,2614.1,0.38263]
[1729214841827,1.38,2614.3,2614.0,1.38]
[1729214841828,1.38,2614.2,2614.0,0.38264]
[1729214842038,1.38,2614.1,2614.0,0.38265]
[1729214845030,11.2056,2614.1,2613.5,4.5878]
[1729214845233,1.38,2613.8,2613.7,1.76269]
[1729214846820,1.2002,2614.0,2613.7,1.76269]
[1729214847021,1.38,2613.9,2613.8,0.38268]
[1729214847222,1.2002,2614.0,2613.8,1.38]
[1729214847423,1.2002,2614.0,2613.9,0.38266]
[1729214848934,2.5802,2614.0,2613.9,0.38266]
[1729214852832,5.788,2614.0,2613.5,3.6328]
[1729214853032,0.38266,2613.9,2613.7,0.38268]
[1729214853231,4.408,2614.0,2613.7,0.38268]
[1729214853232,1.38,2613.8,2613.7,0.38268]
[1729214854228,3.2078,2614.5,2613.7,5.2056]
[1729214854437,1.38,2614.2,2614.1,0.38263]
[1729214863149,0.4101,2614.3,2614.0,0.3968]
[1729214863339,0.4101,2614.3,2614.2,0.38262]
[1729214863533,1.7901,2614.3,2614.2,0.38262]
[1729214868451,0.4101,2614.3,2614.2,0.38262]
[1729214868645,1.7901,2614.3,2614.2,0.38262]
[1729214869251,0.4101,2614.3,2614.2,0.38262]
[1729214869453,1.38,2614.3,2614.2,0.38262]
[1729214870348,9.7926,2614.3,2613.4,3.2078]
[1729214870648,0.8467,2614.4,2613.4,3.2078]
[1729214870649,3.2078,2613.8,2613.7,0.38269]
[1729214870856,1.38,2613.8,2613.7,0.38269]
[1729214871249,1.38,2614.0,2613.7,1.38]
[1729214871449,4.5878,2614.1,2613.9,1.38]
[1729214871655,4.5878,2614.1,2614.0,0.38265]
[1729214872043,1.38,2614.1,2614.0,0.38265]
[1729214874149,1.38,2614.2,2614.1,0.38262]
[1729214874352,2.2267,2614.4,2614.2,0.38261]
[1729214876159,1.38,2614.3,2614.2,0.38261]
[1729214878460,2.60929,2614.4,2614.2,1.76261]
[1729214879151,1.38,2614.3,2614.2,0.38261]
[1729214880955,2.6093,2614.4,2614.2,1.76261]
[1729214881359,2.2267,2614.4,2614.2,1.38]
[1729214881753,5.81709,2614.4,2614.2,1.7626]
[1729214881964,1.38,2614.3,2614.2,1.7626]
[1729214882151,1.38,2614.3,2614.2,0.3826]
[1729214883060,4.43709,2614.4,2614.3,0.3826]
[1729214883061,0.8467,2614.4,2614.3,0.3826]
[1729214883251,0.8467,2614.4,2614.3,2.1685]
[1729214883456,0.8467,2614.4,2614.3,2.5641]
[1729214883862,1.38,2614.8,2614.3,13.3863]
[1729214884066,1.38,2614.8,2614.7,1.38]
[1729214884067,1.76253,2614.8,2614.7,1.38]
[1729214884364,1.76253,2614.8,2614.6,1.76255]
[1729214884766,0.38254,2614.7,2614.6,1.76255]
[1729214884963,1.76255,2614.7,2614.5,1.76256]
[1729214885274,1.2539,2615.0,2614.5,0.38256]
[1729214885275,0.4178,2614.6,2614.5,0.38256]
[1729214885470,0.4178,2614.6,2614.5,1.76256]
[1729214885659,0.4178,2614.6,2614.5,5.58736]
[1729214886261,1.76252,2614.9,2614.6,0.38255]
[1729214886455,1.76252,2614.9,2614.7,1.38]
[1729214886456,0.80034,2614.8,2614.7,1.38]
[1729214886774,0.4178,2614.8,2614.7,0.38254]
[1729214886968,0.4178,2614.8,2614.6,1.38]
[1729214886969,0.80034,2614.8,2614.6,1.76255]
[1729214887562,0.4178,2614.8,2614.7,0.38254]
[1729214887757,1.7978,2614.8,2614.6,1.38]
[1729214887954,2.18034,2614.8,2614.6,1.76255]
[1729214888157,0.38254,2614.7,2614.6,1.38]
[1729214888369,1.7978,2614.8,2614.6,1.38]
[1729214888665,2.18034,2614.8,2614.6,1.76256]
[1729214888868,0.38254,2614.7,2614.6,1.38]
[1729214889068,2.18034,2614.8,2614.6,0.38256]
[1729214889667,1.7978,2614.8,2614.6,0.38256]
[1729214889866,2.18034,2614.8,2614.6,0.38256]
[1729214890368,2.18034,2614.8,2614.6,1.76256]
[1729214890566,0.80034,2614.8,2614.6,1.76256]
[1729214892668,0.4178,2614.8,2614.6,1.38]
[1729214892869,0.4178,2614.8,2614.7,1.76254]
[1729214893281,41.75605,2615.6,2615.2,0.38247]
[1729214893282,0.38245,2615.4,2615.2,0.38247]
[1729214893591,1.76247,2615.3,2615.1,1.38]
[1729214893885,1.38,2615.3,2615.1,1.38]
[1729214894079,1.38,2615.3,2615.2,0.38247]
[1729214894697,1.38,2615.4,2615.3,0.38246]
[1729214894980,1.62273,2615.5,2615.3,1.76245]
[1729214895183,1.38,2615.4,2615.3,1.76246]
[1729214895684,1.2403,2615.5,2615.4,0.38244]
[1729214896481,1.2403,2615.5,2615.2,1.38]
[1729214896482,2.6203,2615.5,2615.2,1.38]
[1729214896681,3.00273,2615.5,2615.2,1.76246]
[1729214896986,3.00273,2615.5,2615.3,0.38245]
[1729214898087,2.6203,2615.5,2615.2,1.38]
[1729214898287,2.6203,2615.5,2615.3,0.38244]
[1729214898492,2.6203,2615.5,2615.4,0.38244]
[1729214899882,1.2403,2615.5,2615.4,0.38244]
[1729214900084,1.2403,2615.5,2615.4,1.76244]
[1729214901994,2.6203,2615.5,2615.4,1.76244]
[1729214902990,3.00273,2615.5,2615.4,1.76244]
[1729214903690,3.00273,2615.5,2615.4,1.38]
[1729214903992,3.00273,2615.5,2615.4,1.76244]
[1729214903993,1.2403,2615.5,2615.4,1.76244]
[1729214906393,3.2078,2615.7,2615.4,1.38]
[1729214906698,3.2078,2615.7,2615.6,1.76241]
[1729214908097,3.5902,2615.7,2615.6,1.76241]
[1729214908399,3.2078,2615.7,2615.6,1.76241]
[1729214909497,3.5902,2615.7,2615.6,1.38]
[1729214909700,3.5902,2615.7,2615.6,1.76241]
[1729214909885,3.2078,2615.7,2615.6,1.76241]
[1729214910601,0.38242,2615.6,2615.4,0.38244]
[1729214910796,3.01923,2615.6,2615.4,1.76243]
[1729214911002,1.63921,2615.6,2615.5,1.38]
[1729214911503,1.63921,2615.6,2614.7,0.95634]
[1729214911504,2.6368,2615.6,2614.9,3.2078]
[1729214911695,1.76247,2615.3,2615.1,1.38]
[1729214911889,0.38247,2615.3,2615.2,0.38247]
[1729214912096,0.38247,2615.3,2615.2,1.76247]
[1729214912601,1.76245,2615.4,2615.2,1.76247]
[1729214912993,1.38,2615.5,2615.3,1.38]
[1729214913192,1.76243,2615.5,2615.4,1.38]
[1729214913401,1.76243,2615.5,2615.4,1.76244]
[1729214913698,1.38,2615.5,2615.4,1.76244]
[1729214913906,1.76243,2615.5,2615.4,1.76244]
[1729214915399,1.38,2615.5,2615.4,1.76244]
[1729214916297,1.22612,2615.6,2615.4,1.76244]
[1729214917900,1.22612,2615.6,2615.5,1.76243]
[1729214918994,1.22612,2615.6,2615.5,1.38]
[1729214919405,1.22612,2615.6,2615.5,1.76243]
[1729214919605,0.8437,2615.6,2615.5,1.76243]
[1729214919996,1.22611,2615.6,2615.5,1.76243]
[1729214920197,1.22611,2615.6,2615.5,1.38]
[1729214920707,0.8437,2615.6,2615.5,1.76243]